Workbook

Sheet Produkto pardavimo ataskaita
B1: Produktų pardavimo ataskaita
B20: Produktai

Sheet Istoriniai duomenys
B1: Retrospektyvinis produktų kainoraštis ir pardavimas
B3: Produkto ID | C3: Produkto pavadinimas | D3: Kainos data | E3: Mažmeninė vieneto kaina | F3: Didmeninė vieneto kaina* | G3: Parduota vienetų (mažmenine kaina) | H3: Parduota vienetų (didmenine kaina) | I3: Iš viso parduota (#) | J3: Bendra pardavimo suma (Lt)
B4: 5 | C4: =IFERROR(IF(lntPard[[#This Row],[Produkto ID]]<>"",VLOOKUP(lntPard[Produkto ID],lntProdukt[[Produkto ID]:[Pavadinimas]],2,FALSE),""),"Unknown Product ID") -> Šortai | D4: 2012-01-01 | E4: 20 | F4: 20.00 Lt | G4: 629 | H4: 1,254 | I4: =lntPard[[#This Row],[Parduota vienetų (mažmenine kaina)]]+lntPard[[#This Row],[Parduota vienetų (didmenine kaina)]] -> 1,883 | J4: =lntPard[[#This Row],[Parduota vienetų (mažmenine kaina)]]*lntPard[[#This Row],[Mažmeninė vieneto kaina]]+lntPard[[#This Row],[Parduota vienetų (didmenine kaina)]]*lntPard[[#This Row],[Didmeninė vieneto kaina*]] -> 37,660.00 Lt
B5: 1 | C5: =IFERROR(IF(lntPard[[#This Row],[Produkto ID]]<>"",VLOOKUP(lntPard[Produkto ID],lntProdukt[[Produkto ID]:[Pavadinimas]],2,FALSE),""),"Unknown Product ID") -> Marškiniai | D5: 2012-01-01 | E5: 88 | F5: 54.00 Lt | G5: 734 | H5: 1,427 | I5: =lntPard[[#This Row],[Parduota vienetų (mažmenine kaina)]]+lntPard[[#This Row],[Parduota vienetų (didmenine kaina)]] -> 2,161 | J5: =lntPard[[#This Row],[Parduota vienetų (mažmenine kaina)]]*lntPard[[#This Row],[Mažmeninė vieneto kaina]]+lntPard[[#This Row],[Parduota vienetų (didmenine kaina)]]*lntPard[[#This Row],[Didmeninė vieneto kaina*]] -> 141,650.00 Lt
B6: 2 | C6: =IFERROR(IF(lntPard[[#This Row],[Produkto ID]]<>"",VLOOKUP(lntPard[Produkto ID],lntProdukt[[Produkto ID]:[Pavadinimas]],2,FALSE),""),"Unknown Product ID") -> Sandalai | D6: 2012-01-01 | E6: 70 | F6: 44.00 Lt | G6: 744 | H6: 1,043 | I6: =lntPard[[#This Row],[Parduota vienetų (mažmenine kaina)]]+lntPard[[#This Row],[Parduota vienetų (didmenine kaina)]] -> 1,787 | J6: =lntPard[[#This Row],[Parduota vienetų (mažmenine kaina)]]*lntPard[[#This Row],[Mažmeninė vieneto kaina]]+lntPard[[#This Row],[Parduota vienetų (didmenine kaina)]]*lntPard[[#This Row],[Didmeninė vieneto kaina*]] -> 97,972.00 Lt
B7: 3 | C7: =IFERROR(IF(lntPard[[#This Row],[Produkto ID]]<>"",VLOOKUP(lntPard[Produkto ID],lntProdukt[[Produkto ID]:[Pavadinimas]],2,FALSE),""),"Unknown Product ID") -> Skėčiai | D7: 2012-01-01 | E7: 63 | F7: 44.00 Lt | G7: 681 | H7: 1,523 | I7: =lntPard[[#This Row],[Parduota vienetų (mažmenine kaina)]]+lntPard[[#This Row],[Parduota vienetų (didmenine kaina)]] -> 2,204 | J7: =lntPard[[#This Row],[Parduota vienetų (mažmenine kaina)]]*lntPard[[#This Row],[Mažmeninė vieneto kaina]]+lntPard[[#This Row],[Parduota vienetų (didmenine kaina)]]*lntPard[[#This Row],[Didmeninė vieneto kaina*]] -> 109,915.00 Lt
B8: 4 | C8: =IFERROR(IF(lntPard[[#This Row],[Produkto ID]]<>"",VLOOKUP(lntPard[Produkto ID],lntProdukt[[Produkto ID]:[Pavadinimas]],2,FALSE),""),"Unknown Product ID") -> Vandens buteliai | D8: 2012-01-01 | E8: 35 | F8: 27.00 Lt | G8: 602 | H8: 1,822 | I8: =lntPard[[#This Row],[Parduota vienetų (mažmenine kaina)]]+lntPard[[#This Row],[Parduota vienetų (didmenine kaina)]] -> 2,424 | J8: =lntPard[[#This Row],[Parduota vienetų (mažmenine kaina)]]*lntPard[[#This Row],[Mažmeninė vieneto kaina]]+lntPard[[#This Row],[Parduota vienetų (didmenine kaina)]]*lntPard[[#This Row],[Didmeninė vieneto kaina*]] -> 70,264.00 Lt
B9: 1 | C9: =IFERROR(IF(lntPard[[#This Row],[Produkto ID]]<>"",VLOOKUP(lntPard[Produkto ID],lntProdukt[[Produkto ID]:[Pavadinimas]],2,FALSE),""),"Unknown Product ID") -> Marškiniai | D9: 2012-02-01 | E9: 55 | F9: 44.00 Lt | G9: 678 | H9: 1,515 | I9: =lntPard[[#This Row],[Parduota vienetų (mažmenine kaina)]]+lntPard[[#This Row],[Parduota vienetų (didmenine kaina)]] -> 2,193 | J9: =lntPard[[#This Row],[Parduota vienetų (mažmenine kaina)]]*lntPard[[#This Row],[Mažmeninė vieneto kaina]]+lntPard[[#This Row],[Parduota vienetų (didmenine kaina)]]*lntPard[[#This Row],[Didmeninė vieneto kaina*]] -> 103,950.00 Lt
B10: 2 | C10: =IFERROR(IF(lntPard[[#This Row],[Produkto ID]]<>"",VLOOKUP(lntPard[Produkto ID],lntProdukt[[Produkto ID]:[Pavadinimas]],2,FALSE),""),"Unknown Product ID") -> Sandalai | D10: 2012-02-01 | E10: 83 | F10: 54.00 Lt | G10: 753 | H10: 1,005 | I10: =lntPard[[#This Row],[Parduota vienetų (mažmenine kaina)]]+lntPard[[#This Row],[Parduota vienetų (didmenine kaina)]] -> 1,758 | J10: =lntPard[[#This Row],[Parduota vienetų (mažmenine kaina)]]*lntPard[[#This Row],[Mažmeninė vieneto kaina]]+lntPard[[#This Row],[Parduota vienetų (didmenine kaina)]]*lntPard[[#This Row],[Didmeninė vieneto kaina*]] -> 116,769.00 Lt
B11: 3 | C11: =IFERROR(IF(lntPard[[#This Row],[Produkto ID]]<>"",VLOOKUP(lntPard[Produkto ID],lntProdukt[[Produkto ID]:[Pavadinimas]],2,FALSE),""),"Unknown Product ID") -> Skėčiai | D11: 2012-02-01 | E11: 34 | F11: 34.00 Lt | G11: 986 | H11: 1,069 | I11: =lntPard[[#This Row],[Parduota vienetų (mažmenine kaina)]]+lntPard[[#This Row],[Parduota vienetų (didmenine kaina)]] -> 2,055 | J11: =lntPard[[#This Row],[Parduota vienetų (mažmenine kaina)]]*lntPard[[#This Row],[Mažmeninė vieneto kaina]]+lntPard[[#This Row],[Parduota vienetų (didmenine kaina)]]*lntPard[[#This Row],[Didmeninė vieneto kaina*]] -> 69,870.00 Lt
B12: 4 | C12: =IFERROR(IF(lntPard[[#This Row],[Produkto ID]]<>"",VLOOKUP(lntPard[Produkto ID],lntProdukt[[Produkto ID]:[Pavadinimas]],2,FALSE),""),"Unknown Product ID") -> Vandens buteliai | D12: 2012-02-01 | E12: 35 | F12: 25.00 Lt | G12: 848 | H12: 1,211 | I12: =lntPard[[#This Row],[Parduota vienetų (mažmenine kaina)]]+lntPard[[#This Row],[Parduota vienetų (didmenine kaina)]] -> 2,059 | J12: =lntPard[[#This Row],[Parduota vienetų (mažmenine kaina)]]*lntPard[[#This Row],[Mažmeninė vieneto kaina]]+lntPard[[#This Row],[Parduota vienetų (didmenine kaina)]]*lntPard[[#This Row],[Didmeninė vieneto kaina*]] -> 59,955.00 Lt
B13: 5 | C13: =IFERROR(IF(lntPard[[#This Row],[Produkto ID]]<>"",VLOOKUP(lntPard[Produkto ID],lntProdukt[[Produkto ID]:[Pavadinimas]],2,FALSE),""),"Unknown Product ID") -> Šortai | D13: 2012-02-01 | E13: 41 | F13: 38.00 Lt | G13: 980 | H13: 1,330 | I13: =lntPard[[#This Row],[Parduota vienetų (mažmenine kaina)]]+lntPard[[#This Row],[Parduota vienetų (didmenine kaina)]] -> 2,310 | J13: =lntPard[[#This Row],[Parduota vienetų (mažmenine kaina)]]*lntPard[[#This Row],[Mažmeninė vieneto kaina]]+lntPard[[#This Row],[Parduota vienetų (didmenine kaina)]]*lntPard[[#This Row],[Didmeninė vieneto kaina*]] -> 90,720.00 Lt
B14: 1 | C14: =IFERROR(IF(lntPard[[#This Row],[Produkto ID]]<>"",VLOOKUP(lntPard[Produkto ID],lntProdukt[[Produkto ID]:[Pavadinimas]],2,FALSE),""),"Unknown Product ID") -> Marškiniai | D14: 2012-02-29 | E14: 27 | F14: 18.00 Lt | G14: 533 | H14: 1,936 | I14: =lntPard[[#This Row],[Parduota vienetų (mažmenine kaina)]]+lntPard[[#This Row],[Parduota vienetų (didmenine kaina)]] -> 2,469 | J14: =lntPard[[#This Row],[Parduota vienetų (mažmenine kaina)]]*lntPard[[#This Row],[Mažmeninė vieneto kaina]]+lntPard[[#This Row],[Parduota vienetų (didmenine kaina)]]*lntPard[[#This Row],[Didmeninė vieneto kaina*]] -> 49,239.00 Lt
B15: 2 | C15: =IFERROR(IF(lntPard[[#This Row],[Produkto ID]]<>"",VLOOKUP(lntPard[Produkto ID],lntProdukt[[Produkto ID]:[Pavadinimas]],2,FALSE),""),"Unknown Product ID") -> Sandalai | D15: 2012-02-29 | E15: 38 | F15: 28.00 Lt | G15: 952 | H15: 1,512 | I15: =lntPard[[#This Row],[Parduota vienetų (mažmenine kaina)]]+lntPard[[#This Row],[Parduota vienetų (didmenine kaina)]] -> 2,464 | J15: =lntPard[[#This Row],[Parduota vienetų (mažmenine kaina)]]*lntPard[[#This Row],[Mažmeninė vieneto kaina]]+lntPard[[#This Row],[Parduota vienetų (didmenine kaina)]]*lntPard[[#This Row],[Didmeninė vieneto kaina*]] -> 78,512.00 Lt
B16: 3 | C16: =IFERROR(IF(lntPard[[#This Row],[Produkto ID]]<>"",VLOOKUP(lntPard[Produkto ID],lntProdukt[[Produkto ID]:[Pavadinimas]],2,FALSE),""),"Unknown Product ID") -> Skėčiai | D16: 2012-02-29 | E16: 92 | F16: 92.00 Lt | G16: 956 | H16: 1,266 | I16: =lntPard[[#This Row],[Parduota vienetų (mažmenine kaina)]]+lntPard[[#This Row],[Parduota vienetų (didmenine kaina)]] -> 2,222 | J16: =lntPard[[#This Row],[Parduota vienetų (mažmenine kaina)]]*lntPard[[#This Row],[Mažmeninė vieneto kaina]]+lntPard[[#This Row],[Parduota vienetų (didmenine kaina)]]*lntPard[[#This Row],[Didmeninė vieneto kaina*]] -> 204,424.00 Lt
B17: 4 | C17: =IFERROR(IF(lntPard[[#This Row],[Produkto ID]]<>"",VLOOKUP(lntPard[Produkto ID],lntProdukt[[Produkto ID]:[Pavadinimas]],2,FALSE),""),"Unknown Product ID") -> Vandens buteliai | D17: 2012-02-29 | E17: 43 | F17: 36.00 Lt | G17: 952 | H17: 1,390 | I17: =lntPard[[#This Row],[Parduota vienetų (mažmenine kaina)]]+lntPard[[#This Row],[Parduota vienetų (didmenine kaina)]] -> 2,342 | J17: =lntPard[[#This Row],[Parduota vienetų (mažmenine kaina)]]*lntPard[[#This Row],[Mažmeninė vieneto kaina]]+lntPard[[#This Row],[Parduota vienetų (didmenine kaina)]]*lntPard[[#This Row],[Didmeninė vieneto kaina*]] -> 90,976.00 Lt
B18: 5 | C18: =IFERROR(IF(lntPard[[#This Row],[Produkto ID]]<>"",VLOOKUP(lntPard[Produkto ID],lntProdukt[[Produkto ID]:[Pavadinimas]],2,FALSE),""),"Unknown Product ID") -> Šortai | D18: 2012-02-29 | E18: 98 | F18: 73.00 Lt | G18: 530 | H18: 1,452 | I18: =lntPard[[#This Row],[Parduota vienetų (mažmenine kaina)]]+lntPard[[#This Row],[Parduota vienetų (didmenine kaina)]] -> 1,982 | J18: =lntPard[[#This Row],[Parduota vienetų (mažmenine kaina)]]*lntPard[[#This Row],[Mažmeninė vieneto kaina]]+lntPard[[#This Row],[Parduota vienetų (didmenine kaina)]]*lntPard[[#This Row],[Didmeninė vieneto kaina*]] -> 157,936.00 Lt
B19: 1 | C19: =IFERROR(IF(lntPard[[#This Row],[Produkto ID]]<>"",VLOOKUP(lntPard[Produkto ID],lntProdukt[[Produkto ID]:[Pavadinimas]],2,FALSE),""),"Unknown Product ID") -> Marškiniai | D19: 2012-03-31 | E19: 38 | F19: 28.00 Lt | G19: 973 | H19: 1,415 | I19: =lntPard[[#This Row],[Parduota vienetų (mažmenine kaina)]]+lntPard[[#This Row],[Parduota vienetų (didmenine kaina)]] -> 2,388 | J19: =lntPard[[#This Row],[Parduota vienetų (mažmenine kaina)]]*lntPard[[#This Row],[Mažmeninė vieneto kaina]]+lntPard[[#This Row],[Parduota vienetų (didmenine kaina)]]*lntPard[[#This Row],[Didmeninė vieneto kaina*]] -> 76,594.00 Lt
B20: 2 | C20: =IFERROR(IF(lntPard[[#This Row],[Produkto ID]]<>"",VLOOKUP(lntPard[Produkto ID],lntProdukt[[Produkto ID]:[Pavadinimas]],2,FALSE),""),"Unknown Product ID") -> Sandalai | D20: 2012-03-31 | E20: 50 | F20: 36.00 Lt | G20: 672 | H20: 1,105 | I20: =lntPard[[#This Row],[Parduota vienetų (mažmenine kaina)]]+lntPard[[#This Row],[Parduota vienetų (didmenine kaina)]] -> 1,777 | J20: =lntPard[[#This Row],[Parduota vienetų (mažmenine kaina)]]*lntPard[[#This Row],[Mažmeninė vieneto kaina]]+lntPard[[#This Row],[Parduota vienetų (didmenine kaina)]]*lntPard[[#This Row],[Didmeninė vieneto kaina*]] -> 73,380.00 Lt
B21: 3 | C21: =IFERROR(IF(lntPard[[#This Row],[Produkto ID]]<>"",VLOOKUP(lntPard[Produkto ID],lntProdukt[[Produkto ID]:[Pavadinimas]],2,FALSE),""),"Unknown Product ID") -> Skėčiai | D21: 2012-03-31 | E21: 24 | F21: 23.00 Lt | G21: 769 | H21: 1,629 | I21: =lntPard[[#This Row],[Parduota vienetų (mažmenine kaina)]]+lntPard[[#This Row],[Parduota vienetų (didmenine kaina)]] -> 2,398 | J21: =lntPard[[#This Row],[Parduota vienetų (mažmenine kaina)]]*lntPard[[#This Row],[Mažmeninė vieneto kaina]]+lntPard[[#This Row],[Parduota vienetų (didmenine kaina)]]*lntPard[[#This Row],[Didmeninė vieneto kaina*]] -> 55,923.00 Lt
B22: 4 | C22: =IFERROR(IF(lntPard[[#This Row],[Produkto ID]]<>"",VLOOKUP(lntPard[Produkto ID],lntProdukt[[Produkto ID]:[Pavadinimas]],2,FALSE),""),"Unknown Product ID") -> Vandens buteliai | D22: 2012-03-31 | E22: 72 | F22: 57.00 Lt | G22: 985 | H22: 1,848 | I22: =lntPard[[#This Row],[Parduota vienetų (mažmenine kaina)]]+lntPard[[#This Row],[Parduota vienetų (didmenine kaina)]] -> 2,833 | J22: =lntPard[[#This Row],[Parduota vienetų (mažmenine kaina)]]*lntPard[[#This Row],[Mažmeninė vieneto kaina]]+lntPard[[#This Row],[Parduota vienetų (didmenine kaina)]]*lntPard[[#This Row],[Didmeninė vieneto kaina*]] -> 176,256.00 Lt
B23: 5 | C23: =IFERROR(IF(lntPard[[#This Row],[Produkto ID]]<>"",VLOOKUP(lntPard[Produkto ID],lntProdukt[[Produkto ID]:[Pavadinimas]],2,FALSE),""),"Unknown Product ID") -> Šortai | D23: 2012-03-31 | E23: 85 | F23: 43.00 Lt | G23: 721 | H23: 1,426 | I23: =lntPard[[#This Row],[Parduota vienetų (mažmenine kaina)]]+lntPard[[#This Row],[Parduota vienetų (didmenine kaina)]] -> 2,147 | J23: =lntPard[[#This Row],[Parduota vienetų (mažmenine kaina)]]*lntPard[[#This Row],[Mažmeninė vieneto kaina]]+lntPard[[#This Row],[Parduota vienetų (didmenine kaina)]]*lntPard[[#This Row],[Didmeninė vieneto kaina*]] -> 122,603.00 Lt
B24: 1 | C24: =IFERROR(IF(lntPard[[#This Row],[Produkto ID]]<>"",VLOOKUP(lntPard[Produkto ID],lntProdukt[[Produkto ID]:[Pavadinimas]],2,FALSE),""),"Unknown Product ID") -> Marškiniai | D24: 2012-04-30 | E24: 91 | F24: 65.00 Lt | G24: 603 | H24: 1,226 | I24: =lntPard[[#This Row],[Parduota vienetų (mažmenine kaina)]]+lntPard[[#This Row],[Parduota vienetų (didmenine kaina)]] -> 1,829 | J24: =lntPard[[#This Row],[Parduota vienetų (mažmenine kaina)]]*lntPard[[#This Row],[Mažmeninė vieneto kaina]]+lntPard[[#This Row],[Parduota vienetų (didmenine kaina)]]*lntPard[[#This Row],[Didmeninė vieneto kaina*]] -> 134,563.00 Lt
B25: 2 | C25: =IFERROR(IF(lntPard[[#This Row],[Produkto ID]]<>"",VLOOKUP(lntPard[Produkto ID],lntProdukt[[Produkto ID]:[Pavadinimas]],2,FALSE),""),"Unknown Product ID") -> Sandalai | D25: 2012-04-30 | E25: 91 | F25: 55.00 Lt | G25: 892 | H25: 1,823 | I25: =lntPard[[#This Row],[Parduota vienetų (mažmenine kaina)]]+lntPard[[#This Row],[Parduota vienetų (didmenine kaina)]] -> 2,715 | J25: =lntPard[[#This Row],[Parduota vienetų (mažmenine kaina)]]*lntPard[[#This Row],[Mažmeninė vieneto kaina]]+lntPard[[#This Row],[Parduota vienetų (didmenine kaina)]]*lntPard[[#This Row],[Didmeninė vieneto kaina*]] -> 181,437.00 Lt
B26: 3 | C26: =IFERROR(IF(lntPard[[#This Row],[Produkto ID]]<>"",VLOOKUP(lntPard[Produkto ID],lntProdukt[[Produkto ID]:[Pavadinimas]],2,FALSE),""),"Unknown Product ID") -> Skėčiai | D26: 2012-04-30 | E26: 42 | F26: 42.00 Lt | G26: 611 | H26: 1,181 | I26: =lntPard[[#This Row],[Parduota vienetų (mažmenine kaina)]]+lntPard[[#This Row],[Parduota vienetų (didmenine kaina)]] -> 1,792 | J26: =lntPard[[#This Row],[Parduota vienetų (mažmenine kaina)]]*lntPard[[#This Row],[Mažmeninė vieneto kaina]]+lntPard[[#This Row],[Parduota vienetų (didmenine kaina)]]*lntPard[[#This Row],[Didmeninė vieneto kaina*]] -> 75,264.00 Lt
B27: 4 | C27: =IFERROR(IF(lntPard[[#This Row],[Produkto ID]]<>"",VLOOKUP(lntPard[Produkto ID],lntProdukt[[Produkto ID]:[Pavadinimas]],2,FALSE),""),"Unknown Product ID") -> Vandens buteliai | D27: 2012-04-30 | E27: 85 | F27: 43.00 Lt | G27: 530 | H27: 1,039 | I27: =lntPard[[#This Row],[Parduota vienetų (mažmenine kaina)]]+lntPard[[#This Row],[Parduota vienetų (didmenine kaina)]] -> 1,569 | J27: =lntPard[[#This Row],[Parduota vienetų (mažmenine kaina)]]*lntPard[[#This Row],[Mažmeninė vieneto kaina]]+lntPard[[#This Row],[Parduota vienetų (didmenine kaina)]]*lntPard[[#This Row],[Didmeninė vieneto kaina*]] -> 89,727.00 Lt
B28: 5 | C28: =IFERROR(IF(lntPard[[#This Row],[Produkto ID]]<>"",VLOOKUP(lntPard[Produkto ID],lntProdukt[[Produkto ID]:[Pavadinimas]],2,FALSE),""),"Unknown Product ID") -> Šortai | D28: 2012-04-30 | E28: 82 | F28: 71.00 Lt | G28: 716 | H28: 1,249 | I28: =lntPard[[#This Row],[Parduota vienetų (mažmenine kaina)]]+lntPard[[#This Row],[Parduota vienetų (didmenine kaina)]] -> 1,965 | J28: =lntPard[[#This Row],[Parduota vienetų (mažmenine kaina)]]*lntPard[[#This Row],[Mažmeninė vieneto kaina]]+lntPard[[#This Row],[Parduota vienetų (didmenine kaina)]]*lntPard[[#This Row],[Didmeninė vieneto kaina*]] -> 147,391.00 Lt
B29: 1 | C29: =IFERROR(IF(lntPard[[#This Row],[Produkto ID]]<>"",VLOOKUP(lntPard[Produkto ID],lntProdukt[[Produkto ID]:[Pavadinimas]],2,FALSE),""),"Unknown Product ID") -> Marškiniai | D29: 2012-05-14 | E29: 34 | F29: 31.00 Lt | G29: 850 | H29: 1,548 | I29: =lntPard[[#This Row],[Parduota vienetų (mažmenine kaina)]]+lntPard[[#This Row],[Parduota vienetų (didmenine kaina)]] -> 2,398 | J29: =lntPard[[#This Row],[Parduota vienetų (mažmenine kaina)]]*lntPard[[#This Row],[Mažmeninė vieneto kaina]]+lntPard[[#This Row],[Parduota vienetų (didmenine kaina)]]*lntPard[[#This Row],[Didmeninė vieneto kaina*]] -> 76,888.00 Lt
B30: 2 | C30: =IFERROR(IF(lntPard[[#This Row],[Produkto ID]]<>"",VLOOKUP(lntPard[Produkto ID],lntProdukt[[Produkto ID]:[Pavadinimas]],2,FALSE),""),"Unknown Product ID") -> Sandalai | D30: 2012-05-14 | E30: 64 | F30: 40.00 Lt | G30: 876 | H30: 1,663 | I30: =lntPard[[#This Row],[Parduota vienetų (mažmenine kaina)]]+lntPard[[#This Row],[Parduota vienetų (didmenine kaina)]] -> 2,539 | J30: =lntPard[[#This Row],[Parduota vienetų (mažmenine kaina)]]*lntPard[[#This Row],[Mažmeninė vieneto kaina]]+lntPard[[#This Row],[Parduota vienetų (didmenine kaina)]]*lntPard[[#This Row],[Didmeninė vieneto kaina*]] -> 122,584.00 Lt
B31: 3 | C31: =IFERROR(IF(lntPard[[#This Row],[Produkto ID]]<>"",VLOOKUP(lntPard[Produkto ID],lntProdukt[[Produkto ID]:[Pavadinimas]],2,FALSE),""),"Unknown Product ID") -> Skėčiai | D31: 2012-05-14 | E31: 33 | F31: 30.00 Lt | G31: 881 | H31: 1,149 | I31: =lntPard[[#This Row],[Parduota vienetų (mažmenine kaina)]]+lntPard[[#This Row],[Parduota vienetų (didmenine kaina)]] -> 2,030 | J31: =lntPard[[#This Row],[Parduota vienetų (mažmenine kaina)]]*lntPard[[#This Row],[Mažmeninė vieneto kaina]]+lntPard[[#This Row],[Parduota vienetų (didmenine kaina)]]*lntPard[[#This Row],[Didmeninė vieneto kaina*]] -> 63,543.00 Lt
B32: 4 | C32: =IFERROR(IF(lntPard[[#This Row],[Produkto ID]]<>"",VLOOKUP(lntPard[Produkto ID],lntProdukt[[Produkto ID]:[Pavadinimas]],2,FALSE),""),"Unknown Product ID") -> Vandens buteliai | D32: 2012-05-14 | E32: 29 | F32: 27.00 Lt | G32: 802 | H32: 1,548 | I32: =lntPard[[#This Row],[Parduota vienetų (mažmenine kaina)]]+lntPard[[#This Row],[Parduota vienetų (didmenine kaina)]] -> 2,350 | J32: =lntPard[[#This Row],[Parduota vienetų (mažmenine kaina)]]*lntPard[[#This Row],[Mažmeninė vieneto kaina]]+lntPard[[#This Row],[Parduota vienetų (didmenine kaina)]]*lntPard[[#This Row],[Didmeninė vieneto kaina*]] -> 65,054.00 Lt
B33: 5 | C33: =IFERROR(IF(lntPard[[#This Row],[Produkto ID]]<>"",VLOOKUP(lntPard[Produkto ID],lntProdukt[[Produkto ID]:[Pavadinimas]],2,FALSE),""),"Unknown Product ID") -> Šortai | D33: 2013-12-11 | E33: 24 | F33: 15.00 Lt | G33: 824 | H33: 1,994 | I33: =lntPard[[#This Row],[Parduota vienetų (mažmenine kaina)]]+lntPard[[#This Row],[Parduota vienetų (didmenine kaina)]] -> 2,818 | J33: =lntPard[[#This Row],[Parduota vienetų (mažmenine kaina)]]*lntPard[[#This Row],[Mažmeninė vieneto kaina]]+lntPard[[#This Row],[Parduota vienetų (didmenine kaina)]]*lntPard[[#This Row],[Didmeninė vieneto kaina*]] -> 49,686.00 Lt

Sheet Kainoraštis
B1: Produktų kainoraštis
B3: Adventure Works
B4: Klevų g. 23456
B5: Joniškis
B6: Tel. (425) 555 0150
B7: Faks. (425) 555 0152
B8: www.adventure-works.com | F8: Paskutinį kartą atnaujinta: 2013.08.15
B10: Produkto ID | C10: Pavadinimas | D10: Aprašas | E10: Mažmeninė vieneto kaina | F10: Didmeninė vieneto kaina*
B11: 1 | C11: Marškiniai | D11: Neperkaisite visą vasarą nešiodami mūsų marškinius iš 100 % medvilnės. | E11: 22.00 Lt | F11: 15.00 Lt
B12: 2 | C12: Sandalai | D12: Aukitės mūsų patvariuosius guminius sandalus ir lengvai keliaukite per karščiausią smėlį. | E12: 10.00 Lt | F12: 6.00 Lt
B13: 3 | C13: Skėčiai | D13: Pasislėpkite nuo saulės po mūsų dideliu paplūdimio skėčiu, kuris sulaiko 96 % pavojingų ultravioletinių spindulių. | E13: 30.00 Lt | F13: 20.00 Lt
B14: 4 | C14: Vandens buteliai | D14: Atsigaivinkite vėsiu vandeniu iš mūsų izoliuoto vandens butelio. | E14: 7.00 Lt | F14: 5.00 Lt
B15: 5 | C15: Šortai | D15: Išsimaudę galite šokti tiesiai į savo automobilį, nes mūsų nailoniniai šortai džiūsta itin greitai. | E15: 15.00 Lt | F15: 8.00 Lt
F17: Skambinkite mums dėl neįtrauktų prekių.
F18: *Didmeninė kaina taikoma perkant 12 arba daugiau vienetų.

Sheet Kainos taško „Pivot“ (hidden)
B1: Ribinių kainų „PivotTable“
B2: Šis lapas turi likti paslėptas. Bet kokie „PivotTable“ keitimai gali lemti neteisingus duomenis produktų pardavimo ataskaitoje.
B3: Pasirinktas produktas: | C3: =IF(LEN(B5),B5,"Nėra") -> Sandalai
B4: Produkto pavadinimas | C4: Mažmeninė vieneto kaina | D4: Suma iš Iš viso parduota (#)
B5: Sandalai | C5: 38.00 Lt | D5: 2464
C6: 50.00 Lt | D6: 1777
C7: 64.00 Lt | D7: 2539
C8: 70.00 Lt | D8: 1787
C9: 83.00 Lt | D9: 1758
C10: 91.00 Lt | D10: 2715

Sheet Pardavimo tendencijų „Pivot“ (hidden)
B1: Pardavimo tendencijų „PivotTable“
B2: Šis lapas turi likti paslėptas. Bet kokie „PivotTable“ keitimai gali lemti neteisingus duomenis produktų pardavimo ataskaitoje.
B3: Suma iš Iš viso parduota (#) | C3: Produkto pavadinimas
B4: Kainos data | C4: Sandalai
B5: Sau | C5: 1787
B6: Vas | C6: 4222
B7: Kov | C7: 1777
B8: Bal | C8: 2715
B9: Geg | C9: 2539
